bitfinex/quotes_ETHUSD_20260312
["timestamp","ask_amount","ask_price","bid_price","bid_amount"]
[1773323745933,1.75581572,2061.6,2060.6,1.21432207]
[1773323746222,3.38652045,2061.6,2060.6,1.21432207]
[1773323746842,1.75581572,2061.6,2060.7,0.04852719]
[1773323747046,1.75579734,2061.6,2060.7,0.04852719]
[1773323747230,1.21266082,2061.6,2060.7,0.54855141]
[1773323747451,1.21263625,2061.7,2060.7,0.54855141]
[1773323747652,1.21339974,2062.1,2061.0,0.50002422]
[1773323747838,0.001,2062.1,2061.1,1.63070473]
[1773323748043,1.75650028,2062.1,2060.9,2.13072895]
[1773323748247,1.75650028,2062.1,2061.0,1.21300339]
[1773323748248,1.21247393,2061.9,2061.0,1.21300339]
[1773323748451,1.75559867,2062.0,2061.0,1.21300339]
[1773323748845,0.54313652,2061.9,2061.0,1.21300339]
[1773323749369,0.54313652,2061.8,2061.0,1.21300339]
[1773323750067,1.21246215,2062.0,2061.0,1.21300339]
[1773323750258,1.75559867,2062.0,2061.0,1.21300339]
[1773323750576,1.75559867,2062.0,2061.0,1.26152352]
[1773323750773,1.75559867,2062.0,2061.0,1.21300339]
[1773323751364,0.54714758,2061.9,2060.9,0.50002422]
[1773323751548,2.17785231,2061.7,2060.9,1.21303678]
[1773323751750,1.63070473,2061.2,2060.6,0.0011]
[1773323752273,0.54714758,2061.1,2060.6,0.0011]
[1773323752460,1.21300339,2061.0,2060.6,0.0011]
[1773323753048,5.39916116,2061.1,2060.6,0.0011]
[1773323753049,3.49713565,2061.1,2060.6,0.0011]
[1773323753241,3.4970961,2061.1,2060.6,0.0011]
[1773323753441,1.63070473,2061.7,2060.6,0.0011]
[1773323753657,3.49679794,2061.6,2060.6,0.0011]
[1773323753851,1.63540214,2061.5,2060.6,0.0011]
[1773323754072,2.28414758,2061.6,2060.6,0.0011]
[1773323754378,2.28414758,2061.6,2060.6,0.49904831]
[1773323754379,3.49681434,2061.6,2060.6,0.49904831]
[1773323754666,3.49681434,2061.6,2060.9,0.0011]
[1773323754667,1.737,2061.6,2060.9,0.0011]
[1773323754869,2.94965587,2061.6,2060.9,0.0011]
[1773323755082,2.9496539,2061.6,2060.9,0.0011]
[1773323755377,2.9496665,2061.6,2060.9,0.0011]
[1773323755747,1.21358496,2061.8,2060.9,0.0011]
[1773323756642,1.21358496,2061.8,2060.9,1.21416225]
[1773323756643,2.18254972,2061.6,2060.9,1.21416225]
[1773323756839,0.54714758,2061.6,2060.9,1.21416225]
[1773323757038,0.001,2061.8,2060.9,1.21416225]
[1773323757241,0.001,2061.8,2060.9,1.71211056]
[1773323758477,0.001,2061.8,2060.9,1.76063305]
[1773323758642,0.001,2061.8,2060.9,1.21416225]
[1773323758838,0.001,2061.8,2061.0,0.49794831]
[1773323759042,0.001,2061.8,2060.9,2.89808688]
[1773323759043,0.001,2061.8,2061.2,0.49794831]
[1773323759738,1.63540214,2061.6,2060.9,1.21414909]
[1773323760143,0.54714758,2061.7,2060.9,1.21414909]
[1773323760468,0.001,2061.8,2061.0,1.26149038]
[1773323760673,0.001,2061.8,2061.0,1.21297025]
[1773323760970,0.001,2061.8,2060.9,1.21415197]
[1773323760971,0.54714758,2061.7,2060.9,1.21415197]
[1773323761165,0.54714758,2061.7,2060.9,0.0011]
[1773323761369,0.54714758,2061.7,2060.9,1.2141562]
[1773323761971,0.54714758,2061.7,2060.9,1.26267869]
[1773323762175,0.54714758,2061.7,2060.9,1.2141562]
[1773323762376,0.001,2061.8,2060.9,1.2141562]
[1773323762874,0.54714758,2061.6,2060.9,0.0011]
[1773323763073,0.54714758,2061.4,2060.9,0.0011]
[1773323763279,0.54714758,2061.0,2060.0,2.50865253]
[1773323763584,0.54714758,2061.0,2060.0,1.21356819]
[1773323763585,1.63540214,2060.9,2060.0,1.21356819]
[1773323763879,1.63540214,2060.7,2059.9,1.21363964]
[1773323764577,1.21323886,2060.6,2059.8,1.21370608]
[1773323764963,2.94715631,2060.8,2059.8,1.71165439]
[1773323765169,2.94715631,2060.8,2059.8,1.76020279]
[1773323765679,2.94712592,2060.8,2059.9,0.49794831]
[1773323766459,1.63540214,2060.6,2059.8,1.21370608]
[1773323766659,1.63540214,2060.2,2059.1,0.49794831]
[1773323766862,1.63540214,2060.0,2059.0,4.85649069]
[1773323767074,2.18254972,2060.0,2059.0,4.85649069]
[1773323767456,1.63540214,2059.6,2058.9,1.21422487]
[1773323767669,3.81795186,2060.0,2058.5,0.161437]
[1773323767670,2.18254972,2059.2,2058.5,0.161437]
[1773323768070,1.63540214,2059.0,2058.5,0.161437]
[1773323768251,2.18254972,2059.2,2058.5,0.161437]
[1773323768598,1.21412267,2059.1,2058.5,1.37590933]
[1773323768753,1.63540214,2058.8,2058.5,0.161437]
[1773323769086,1.21412267,2059.1,2058.0,0.49794831]
[1773323769269,2.8494904,2059.2,2058.1,0.0485885]
[1773323769661,1.21408826,2059.2,2058.1,0.0485885]
[1773323770193,7.13624703,2059.3,2058.3,0.49794831]
[1773323770194,2.94701246,2059.3,2058.3,0.49794831]
[1773323770356,1.733,2059.3,2058.4,1.68398356]
[1773323770683,3.77117561,2059.7,2058.7,1.21435857]
[1773323770885,3.77117561,2059.7,2058.1,2.64222897]
[1773323770886,1.63540214,2058.8,2057.8,5.35750264]
[1773323771086,1.732,2059.0,2057.9,0.49794831]
[1773323771862,1.732,2059.0,2058.0,0.49794831]
[1773323772788,1.732,2059.0,2058.2,0.49794831]
[1773323773285,1.63540214,2058.9,2057.8,1.71277896]
[1773323773462,1.63540214,2058.5,2057.5,1.21506682]
[1773323773665,1.63540214,2058.7,2057.5,1.71301513]
[1773323774181,0.54714758,2058.8,2057.6,1.63540214]
[1773323774587,2.94618905,2059.0,2057.3,0.82681916]
[1773323774588,1.63540214,2057.8,2057.3,0.82681916]
[1773323774787,1.21494872,2057.7,2057.3,0.82681916]
[1773323774963,3.49295052,2058.0,2057.3,2.04199983]
[1773323775563,3.49295052,2058.0,2057.3,0.82681916]
[1773323775963,3.49295052,2058.0,2057.3,2.04199592]
[1773323776189,2.94578617,2058.0,2057.3,2.0419932]
[1773323776569,1.21469569,2058.2,2057.3,2.0419932]
[1773323776776,1.76174214,2058.3,2057.3,2.0419932]
[1773323777090,1.2145539,2058.4,2057.3,3.67739534]
[1773323777287,0.54714758,2058.2,2057.3,2.04197367]
[1773323777456,1.63540214,2058.1,2057.3,0.82681916]
[1773323777659,2.18254972,2058.1,2057.3,0.82681916]
[1773323777859,8.004596,2057.4,2056.7,2.0]
[1773323778056,3.36540214,2057.3,2056.7,2.0]
[1773323778286,1.73,2057.3,2056.7,3.21553097]
[1773323778489,1.73,2057.3,2056.7,2.0]
[1773323778692,1.21524402,2057.2,2056.7,2.0]
[1773323779696,1.73,2057.3,2056.7,3.21551726]
[1773323780400,1.73,2057.3,2056.7,2.71601726]
[1773323780561,1.21489258,2057.8,2057.5,0.0011]
[1773323780859,1.74166537,2058.3,2057.1,1.63460214]
[1773323781062,0.52707054,2058.3,2057.3,1.63650214]
[1773323781292,1.74167808,2058.3,2057.4,0.04860503]
[1773323781492,1.21460754,2058.3,2057.4,0.04860503]
[1773323781764,1.21441756,2058.6,2057.4,0.59144271]
[1773323781988,1.21441756,2058.6,2057.4,0.54283768]
[1773323782370,1.729,2058.9,2057.8,2.3142205]
[1773323782594,5.498224,2059.7,2058.2,0.54283768]
[1773323782763,5.498224,2059.7,2058.5,1.21447656]
[1773323782764,4.2843991,2059.7,2058.5,1.21447656]
[1773323783070,4.32878192,2060.2,2058.8,0.54283768]
[1773323783071,1.21353332,2060.1,2058.8,0.54283768]
[1773323783495,0.52707054,2060.6,2059.3,2.3142205]
[1773323783795,1.69354642,2060.7,2059.4,0.54283768]
[1773323783972,2.22061696,2060.7,2059.1,0.54283768]
[1773323784298,1.69354642,2060.7,2059.1,0.54283768]
[1773323784594,4.730949,2060.3,2059.1,0.54283768]
[1773323784891,0.52707054,2060.4,2059.1,0.54283768]
[1773323784892,1.21338822,2060.4,2059.3,0.54283768]
[1773323785279,1.21325974,2060.6,2059.5,1.77138282]
[1773323785483,1.21325974,2060.6,2059.5,2.3142205]
[1773323785678,1.69353188,2060.7,2059.5,2.3142205]
[1773323785878,1.21315863,2060.8,2059.5,2.3142205]
[1773323786994,1.726,2060.9,2059.7,0.54283768]
[1773323787192,1.726,2060.9,2059.6,1.21382792]
[1773323787193,2.93908,2060.9,2059.8,2.3142205]
[1773323787572,0.52707054,2060.8,2059.4,0.54283768]
[1773323787800,13.40205,2060.1,2058.7,0.54283768]
[1773323787990,0.52707054,2060.2,2058.7,0.54283768]
[1773323787991,1.77138282,2060.0,2058.7,0.54283768]
[1773323788190,2.29845336,2060.0,2058.5,4.85769893]
[1773323788389,1.725,2060.1,2058.6,0.54283768]
[1773323788620,1.725,2060.1,2058.5,6.62908175]
[1773323788621,1.725,2060.1,2058.8,2.3142205]
[1773323789100,18.791603,2059.9,2058.6,4.85766171]
[1773323789401,1.21359223,2060.0,2058.6,5.40049939]
[1773323789575,1.21359223,2060.0,2058.8,2.3142205]
[1773323789976,1.21359223,2060.0,2059.1,1.77138282]
[1773323790583,1.21359223,2060.0,2058.9,0.54283768]
[1773323790979,4.85354695,2060.4,2059.0,1.21418164]
[1773323791185,4.85354695,2060.4,2059.0,1.75701932]
[1773323791402,4.85354695,2060.4,2059.1,1.77138282]
[1773323791574,4.85354695,2060.4,2059.2,0.54283768]
[1773323793101,1.21335662,2060.5,2059.4,1.77138282]
[1773323793102,4.85342651,2060.5,2059.4,1.77138282]
[1773323793268,4.85342651,2060.5,2059.3,1.75684243]
[1773323793472,4.85253759,2060.8,2059.3,1.75684243]
[1773323793674,1.21317998,2060.7,2059.4,0.54283768]
[1773323794074,1.21296271,2061.1,2060.2,1.77138282]
[1773323794275,1.21296271,2061.1,2060.0,0.54283768]
[1773323794482,1.77138282,2061.0,2059.5,2.87098568]
[1773323794775,1.77138282,2061.0,2059.6,0.54283768]
[1773323795005,1.77138282,2061.0,2059.6,1.75662383]
[1773323795006,1.74013279,2060.9,2059.6,1.75662383]
[1773323796707,8.48104,2060.3,2058.8,0.54283768]
[1773323796910,1.21347441,2060.2,2058.9,1.21424061]
[1773323797110,1.21447441,2060.2,2059.0,0.54283768]
[1773323797282,1.21447441,2060.2,2059.0,0.59140494]
[1773323797705,0.001,2060.2,2059.1,2.3142205]
[1773323797905,0.001,2060.2,2059.2,0.54283768]
[1773323798113,0.001,2060.2,2059.2,0.59140022]
[1773323798490,0.001,2060.2,2059.4,2.3142205]
[1773323799004,0.001,2060.2,2058.2,1.695968]
[1773323799005,0.001,2060.2,2059.2,1.21406371]
[1773323799182,0.001,2060.2,2059.3,0.04856019]
[1773323799377,0.001,2060.2,2059.3,0.59139787]
[1773323799699,0.001,2060.2,2059.3,0.54283768]
[1773323799896,0.001,2060.2,2059.4,1.77138282]
[1773323800097,0.001,2060.2,2059.4,2.3142205]
[1773323800519,0.001,2060.2,2059.4,2.36277833]
[1773323800714,0.001,2060.2,2059.4,2.3142205]
[1773323800916,0.001,2060.2,2059.4,1.3142205]
[1773323801237,17.824263,2060.9,2059.6,0.54283768]
[1773323801516,0.52707054,2060.8,2059.5,1.21388686]
[1773323801823,2.29845336,2060.4,2059.0,1.21418164]
[1773323802034,0.52707054,2060.4,2059.1,1.77138282]
[1773323802238,1.77138282,2060.7,2059.2,0.54283768]
[1773323802729,0.52707054,2060.8,2059.4,1.77138282]
[1773323802937,0.52707054,2060.8,2059.5,0.59139315]
[1773323803142,1.21317998,2060.7,2059.6,1.21382792]
[1773323803671,1.21317998,2060.7,2059.7,0.04855075]
[1773323804998,18.07461939,2061.0,2059.8,1.21371006]
[1773323805318,16.855523,2060.9,2059.8,1.21371006]
[1773323806224,16.855523,2060.9,2059.9,0.04854604]
[1773323806600,1.21300339,2061.0,2059.8,1.21371006]
[1773323807143,1.21300339,2061.0,2059.8,1.74732124]
[1773323807445,1.21300339,2061.0,2059.9,0.53361118]
[1773323807647,1.21276802,2061.4,2060.1,0.53361118]
[1773323807951,1.21276802,2061.4,2060.3,2.304994]
[1773323808153,1.21276802,2061.4,2060.2,2.49412847]
[1773323808438,4.85184408,2061.5,2060.4,0.53361118]
[1773323808439,1.21371217,2061.5,2060.4,0.53361118]
[1773323808627,1.21372912,2061.5,2060.4,0.53361118]
[1773323808950,1.21372912,2061.5,2060.5,0.53361118]
[1773323808951,0.001,2061.5,2060.5,0.53361118]
[1773323809156,0.001,2061.5,2060.7,1.74679116]
[1773323809462,0.001,2061.5,2060.8,0.53361118]
[1773323809619,0.001,2061.6,2060.9,2.304994]
[1773323809817,0.001,2061.6,2061.0,0.53361118]
[1773323810137,0.001,2061.6,2060.7,1.21317998]
[1773323810138,0.001,2061.8,2061.3,0.53361118]
[1773323810313,1.2133597,2062.1,2061.3,2.09261118]
[1773323810954,0.001,2062.1,2061.3,2.09261118]
[1773323811246,0.001,2062.1,2061.0,1.21300339]
[1773323811446,0.50992589,2062.0,2060.8,1.21312111]
[1773323811850,0.50992589,2062.0,2060.8,1.73987341]
[1773323812527,0.001,2062.1,2061.0,1.77138282]
[1773323812722,0.001,2062.1,2061.0,0.5267523]
[1773323813323,0.001,2062.1,2061.1,1.21294454]
[1773323814615,0.51092589,2062.1,2060.9,4.85217421]
[1773323815346,1.21241513,2062.0,2060.9,4.85217421]
[1773323815543,1.21340077,2062.1,2061.1,2.29197038]
[1773323816176,1.21340077,2062.1,2061.1,0.5267523]
[1773323817347,1.21340077,2062.1,2061.2,1.21288569]
[1773323817348,0.001,2062.1,2061.2,1.21288569]
[1773323817720,0.001,2062.1,2061.2,1.73963799]
[1773323818361,0.001,2062.1,2061.2,1.21288569]
[1773323818533,0.001,2062.1,2061.3,0.5267523]
[1773323818787,0.001,2062.1,2061.2,1.21288569]
[1773323819098,0.001,2062.1,2061.3,0.5267523]
[1773323819460,0.001,2062.1,2061.5,2.29197038]
[1773323819660,0.001,2062.4,2061.6,0.5267523]
[1773323820203,0.51092589,2062.4,2061.2,1.73962902]
[1773323820409,0.51092589,2062.4,2060.9,1.21303709]
[1773323820410,0.50992589,2062.1,2060.9,1.21303709]
[1773323820708,0.50992589,2062.1,2061.0,0.04852013]
[1773323821002,0.50992589,2062.1,2060.9,0.04852249]
[1773323821184,1.716,2062.4,2060.9,0.04852249]
[1773323821185,1.716,2062.4,2061.0,1.76521808]
[1773323821387,3.77924265,2062.3,2061.2,1.21288569]
[1773323821573,1.21223876,2062.3,2061.3,0.04851307]
[1773323822483,1.21322009,2062.4,2061.4,0.5267523]
[1773323822668,0.001,2062.4,2061.6,2.29197038]
[1773323823007,1.21318099,2062.4,2061.6,2.29197038]
[1773323823366,1.21318099,2062.4,2061.2,1.21288569]
[1773323823367,1.21318099,2062.4,2061.2,1.73963799]
[1773323823783,1.72310688,2062.4,2061.2,1.73963799]
[1773323824112,1.21318099,2062.4,2061.4,0.5267523]
[1773323824292,0.001,2062.2,2061.5,0.04850836]
[1773323824805,0.001,2062.2,2061.4,0.5267523]
[1773323825108,0.001,2062.2,2061.5,0.04850836]
[1773323825612,0.50992589,2062.8,2061.9,1.76521808]
[1773323825613,1.21200368,2062.8,2061.9,1.76521808]
[1773323825768,1.21200368,2062.8,2061.7,0.5267523]
[1773323825971,1.21200368,2062.8,2061.7,0.57525596]
[1773323826477,1.72192957,2062.8,2061.6,1.21265036]
[1773323827214,5.89995389,2062.5,2061.4,1.21276802]
[1773323827413,0.50992589,2062.5,2061.5,0.04850836]
[1773323827707,2.97722176,2062.8,2061.5,0.04850836]
[1773323827708,1.72187081,2062.8,2061.8,1.6331837]
[1773323827869,1.72187081,2062.8,2061.8,1.681685]
[1773323828070,1.21193363,2062.9,2062.0,1.6331837]
[1773323828578,1.21193363,2062.9,2061.8,2.159936]
[1773323829194,1.6331837,2062.7,2061.6,1.21265036]
[1773323829374,0.50992589,2062.8,2061.6,1.21265036]
[1773323829569,1.21200368,2062.7,2061.7,0.04850366]
[1773323829769,1.21200368,2062.7,2061.7,1.6331837]
[1773323830182,1.21200368,2062.7,2061.8,1.6331837]
[1773323830387,1.21200368,2062.7,2061.6,3.720936]
[1773323830602,1.21200368,2062.7,2061.6,0.5267523]
[1773323830782,1.21200368,2062.7,2061.7,0.04850366]
[1773323830981,1.21200368,2062.7,2061.6,2.159936]
[1773323831300,2.14310959,2062.5,2061.3,1.561]
[1773323831472,2.14310959,2062.5,2061.3,6.41207208]
[1773323831668,1.21217998,2062.4,2061.4,1.68169442]
[1773323831872,1.21217998,2062.4,2061.6,1.6331837]
[1773323832173,1.21217998,2062.4,2061.7,0.04850366]
[1773323832369,1.21217998,2062.4,2061.4,1.6331837]
[1773323832570,1.21217998,2062.4,2061.5,0.04850836]
[1773323832801,1.21217998,2062.4,2061.4,1.6331837]
[1773323833003,1.21217998,2062.4,2061.4,2.159936]
[1773323833179,3.8203984,2063.1,2062.0,1.6331837]
[1773323833381,5.09101176,2063.3,2062.4,1.6331837]
[1773323833382,4.84683986,2063.3,2062.4,1.6331837]
[1773323833730,4.84683986,2063.3,2062.5,1.21212121]
[1773323834270,0.001,2064.5,2063.3,0.5267523]
[1773323834506,0.50992589,2064.1,2062.7,2.73560199]
[1773323834808,3.727308,2064.0,2062.8,1.561]
[1773323834995,0.50992589,2064.0,2062.8,1.562]
[1773323835392,0.50992589,2064.0,2062.7,4.36878569]
[1773323835583,0.50992589,2064.0,2062.8,1.562]
[1773323835903,1.21129899,2063.9,2063.1,1.6331837]
[1773323836105,4.84493718,2064.1,2063.1,1.6331837]
[1773323836305,4.84493718,2064.1,2062.9,1.21188617]
[1773323836306,1.21100561,2064.4,2063.4,1.6331837]
[1773323837006,0.50992589,2064.3,2063.0,1.6331837]
[1773323837509,0.50992589,2064.1,2062.9,1.21188617]
[1773323837916,1.21124031,2064.0,2063.0,1.6331837]
[1773323838112,4.84484142,2064.5,2063.4,1.6331837]
[1773323838417,1.21100561,2064.4,2063.4,1.6331837]
[1773323838915,0.001,2063.9,2063.4,1.6331837]
[1773323839214,0.001,2063.9,2063.6,1.6331837]
[1773323839415,0.001,2063.9,2063.2,1.564]
[1773323839416,0.001,2064.5,2063.8,1.6331837]
[1773323839612,0.001,2064.5,2063.5,3.2663674]
[1773323839613,0.82781916,2064.7,2064.1,1.6331837]
[1773323839982,0.82781916,2064.7,2064.3,1.6331837]
[1773323840412,0.002,2064.9,2064.3,1.6331837]
[1773323840905,1.21271305,2064.9,2064.3,1.6331837]
[1773323841088,0.002,2064.9,2064.2,1.21112295]
[1773323841918,0.002,2064.9,2064.5,1.21094696]
[1773323842215,0.002,2064.9,2064.0,4.41138964]
[1773323842424,0.002,2064.9,2063.5,1.6331837]
[1773323842425,0.53379584,2064.9,2063.5,1.6331837]
[1773323842712,0.53379584,2064.9,2063.1,0.47092966]
[1773323842713,0.53179584,2064.7,2063.4,2.77854742]
[1773323842904,0.53179584,2064.7,2063.6,1.77548242]
[1773323843684,0.53179584,2064.7,2063.4,1.21154742]
[1773323843995,0.53179584,2064.7,2063.4,2.77954742]
[1773323844194,1.2108883,2064.6,2063.4,2.77954742]
[1773323844589,0.53179584,2064.5,2063.4,1.21154742]
[1773323846218,0.53179584,2064.5,2063.3,4.84637006]
[1773323846219,1.74276358,2064.5,2063.3,4.84637006]
[1773323847320,1.74276358,2064.5,2063.4,1.571]
[1773323847517,0.53179584,2064.5,2063.5,0.04846135]
[1773323847826,4.84331765,2064.8,2063.3,5.31007753]
[1773323847993,0.002,2064.9,2063.7,0.42071642]
[1773323848181,0.002,2064.9,2063.9,1.21129899]
[1773323848595,0.53379584,2064.9,2063.9,1.21129899]
[1773323848788,0.53379584,2064.9,2064.0,0.04844961]
[1773323848989,0.53379584,2064.9,2063.7,4.84519598]
[1773323848990,0.53379584,2064.9,2063.2,1.67366209]
[1773323849323,0.53179584,2064.7,2063.4,4.84631985]
[1773323849532,0.53179584,2064.7,2063.5,0.04846135]
[1773323849685,0.53179584,2064.7,2063.4,4.84631985]
[1773323850024,0.53179584,2064.7,2063.5,1.573]
[1773323850234,1.74268414,2064.6,2063.6,1.25993409]
[1773323850717,1.21087748,2064.7,2063.6,1.21147509]
[1773323850887,0.53179584,2064.6,2063.6,1.21147509]
[1773323851990,0.53179584,2064.6,2063.7,0.04845665]
[1773323852418,1.21094696,2064.5,2063.8,1.21135768]
[1773323852616,1.21094696,2064.5,2063.9,0.04845195]
[1773323852820,1.21094696,2064.5,2063.4,1.573]
[1773323852821,0.53179584,2064.4,2063.2,4.84682865]
[1773323853215,0.53179584,2064.4,2063.3,0.04846604]
[1773323853516,4.84378784,2064.6,2063.3,0.4707059]
[1773323853517,1.21090464,2064.6,2063.3,0.4707059]
[1773323853700,0.53179584,2064.5,2063.3,0.42223986]
[1773323854411,0.53179584,2064.5,2063.4,1.574]
[1773323854608,1.21100561,2064.4,2063.5,1.2115338]
[1773323854918,1.74276194,2064.5,2063.5,1.2115338]
[1773323855306,0.53179584,2064.4,2063.5,1.2115338]
[1773323856705,1.74286012,2064.3,2063.2,1.573]
[1773323857202,1.74286012,2064.3,2063.3,0.04846604]
[1773323857738,0.53179584,2064.2,2063.3,2.39690588]
[1773323857895,1.21105383,2064.4,2063.3,2.34843984]
[1773323858728,4.84390812,2064.5,2063.2,1.21170996]
[1773323858921,5.37570396,2064.5,2063.2,1.21170996]
[1773323859097,5.37570396,2064.5,2063.2,1.62549302]
[1773323859723,0.53179584,2064.4,2063.2,1.21170996]
[1773323860100,0.53179584,2064.4,2063.2,3.19609399]
[1773323860956,1.726,2064.8,2063.2,3.19609399]
[1773323860957,0.002,2064.9,2064.1,2.34843984]
[1773323861223,0.002,2064.9,2064.2,1.571]
[1773323861812,1.21276397,2064.9,2064.0,0.40998795]
[1773323862003,1.21276397,2064.9,2064.1,1.571]
[1773323862219,1.21276397,2064.9,2064.1,1.57]
[1773323862420,1.21276397,2064.9,2063.7,2.75706414]
[1773323862597,1.21276397,2064.9,2063.8,1.57]
[1773323862797,1.21276397,2064.9,2063.9,1.21129899]
[1773323862798,0.002,2064.9,2063.9,1.21129899]
[1773323863036,0.002,2064.9,2064.3,2.34843984]
[1773323863246,1.21245911,2065.4,2064.0,0.45568365]
[1773323863247,0.002,2065.4,2064.6,2.34843984]
[1773323863532,0.52886582,2065.3,2064.2,1.569]
[1773323863894,0.52886582,2065.3,2064.0,2.60648567]
[1773323864417,0.52886582,2065.3,2064.0,4.17548567]
[1773323864725,0.52886582,2065.0,2063.8,4.84519598]
[1773323864896,0.52886582,2065.0,2064.0,2.60648567]
[1773323865805,0.52886582,2065.0,2064.1,0.04954726]
[1773323866012,0.52886582,2065.0,2064.1,0.0011]
[1773323866723,0.52886582,2065.0,2064.1,0.04954726]
[1773323866912,1.21071238,2064.9,2064.2,1.21112295]
[1773323867116,0.52886582,2065.0,2064.2,1.21112295]
[1773323867296,1.73952335,2065.0,2064.3,0.04844257]
[1773323867506,0.52886582,2064.9,2064.2,1.21112295]
[1773323868340,4.84338696,2065.1,2064.2,1.21112295]
[1773323868341,1.21160776,2065.1,2064.3,0.04844257]
[1773323868642,1.21160776,2065.1,2064.4,0.04844022]
[1773323868821,1.21160776,2065.1,2064.3,0.04844257]
[1773323869349,1.74047358,2065.1,2064.4,1.21100561]
[1773323869547,1.21160776,2065.1,2064.2,4.8443869]
[1773323869735,0.52886582,2065.0,2064.2,4.8443869]
[1773323870038,0.52886582,2065.0,2064.3,0.04844257]
[1773323870951,0.52886582,2065.0,2064.2,4.8443869]
[1773323871438,1.68273156,2064.9,2064.3,0.04844257]
[1773323871832,0.47201918,2064.8,2064.1,0.0011]
[1773323873045,0.47201918,2064.8,2064.1,1.21227986]
[1773323873251,0.47201918,2064.8,2064.2,0.04844491]
[1773323873630,1.68281193,2064.8,2064.1,0.0011]
[1773323874741,1.68281193,2064.8,2064.1,0.04954726]
[1773323875050,1.68279519,2064.8,2064.1,0.0011]
[1773323875255,0.47201918,2064.7,2064.1,0.0011]
[1773323875627,1.2108883,2064.6,2064.1,0.0011]
[1773323876048,0.47201918,2064.5,2064.1,0.0011]
[1773323876755,1.2108883,2064.6,2064.1,0.0011]
[1773323876959,1.68283272,2064.8,2064.1,0.0011]
[1773323877171,0.47201918,2064.7,2064.1,0.0011]
[1773323877644,1.2108883,2064.6,2064.1,0.0011]
[1773323877841,1.68289214,2064.7,2064.1,0.0011]
[1773323878363,0.47201918,2064.6,2064.1,0.0011]
[1773323879746,1.68296614,2064.5,2064.1,0.0011]
[1773323880248,0.47201918,2064.5,2064.1,0.0011]
[1773323880449,0.001,2064.7,2064.1,0.0011]
[1773323880651,1.21185607,2064.7,2064.1,0.0011]
[1773323881239,1.21183344,2064.7,2064.1,0.0011]
[1773323881566,0.47201918,2064.6,2064.1,0.0011]
[1773323881733,0.47201918,2064.4,2064.1,0.0011]
[1773323883892,0.47201918,2064.2,2063.8,0.0011]
[1773323884033,0.47201918,2063.4,2063.1,0.0011]
[1773323884471,0.47201918,2063.4,2063.1,0.0044]
[1773323884765,0.47201918,2063.4,2062.9,0.0011]
[1773323884937,0.47201918,2063.4,2063.1,0.0011]
[1773323886156,1.704,2063.6,2063.2,0.0022]
[1773323886157,2.91550112,2063.6,2063.2,0.0022]
[1773323887172,0.47201918,2064.1,2063.0,2.60797385]
[1773323887342,0.47201918,2064.1,2063.1,0.0011]
[1773323887666,0.47201918,2063.9,2063.1,0.0011]
[1773323888244,1.68337686,2063.8,2063.0,0.0022]
[1773323888441,1.68337686,2063.8,2062.9,0.0011]
[1773323888637,1.68337686,2063.8,2063.0,0.0033]
[1773323888840,0.47201918,2063.8,2063.0,0.0033]
[1773323889575,0.47201918,2063.8,2063.0,0.05177309]
[1773323890156,1.21141638,2063.7,2063.0,0.0033]
[1773323890356,1.21141638,2063.7,2063.0,0.05177309]
[1773323890682,0.47201918,2063.8,2063.0,0.05177309]
[1773323890884,0.47201918,2064.1,2063.0,2.65974694]
[1773323891087,0.47201918,2064.1,2063.0,0.0033]
[1773323892175,0.47201918,2063.9,2063.0,0.0033]
[1773323892365,0.47201918,2063.6,2063.0,0.0033]
[1773323893362,0.47201918,2063.6,2063.2,0.0011]
[1773323893954,0.47201918,2063.6,2063.0,0.0011]
[1773323894368,1.68355298,2063.5,2063.0,0.0044]
[1773323894592,0.47201918,2063.4,2063.0,0.0044]
[1773323895393,1.21145232,2063.7,2063.0,0.0044]
[1773323896088,4.16308735,2063.8,2063.0,0.0044]
[1773323896264,1.68340797,2063.8,2063.0,0.0044]
[1773323896664,0.47201918,2063.8,2063.0,0.0044]
[1773323897080,1.68337957,2063.8,2063.0,0.0044]
[1773323897294,1.68337957,2063.8,2063.0,0.05287309]
[1773323897492,1.68338046,2063.8,2063.0,0.05287309]
[1773323898296,1.68338046,2063.8,2063.0,0.0044]
[1773323899587,1.68338046,2063.8,2063.0,0.0022]
[1773323899764,1.68339338,2063.8,2063.0,0.0022]
[1773323900166,0.47201918,2063.7,2063.1,0.0022]
[1773323900695,0.47201918,2063.7,2063.2,0.0011]
[1773323901772,1.21147509,2063.6,2063.3,0.0022]
[1773323902095,1.69372248,2063.6,2063.3,0.0022]
[1773323902298,0.48224739,2063.5,2063.0,0.0011]
[1773323902498,0.48224739,2062.9,2061.5,0.51368721]
[1773323902697,0.48224739,2062.9,2061.7,1.21259155]
[1773323903195,0.48224739,2062.9,2061.7,3.8205654]
[1773323904472,1.21194492,2062.8,2062.0,2.60797385]
[1773323904875,1.21194492,2062.8,2062.1,0.04849425]
[1773323905683,1.6941641,2062.9,2062.1,0.04849425]
[1773323905884,4.8467242,2063.3,2062.3,2.60797385]
[1773323905885,0.48224739,2063.2,2062.3,2.60797385]
[1773323906201,4.84660495,2063.4,2063.0,0.0011]
[1773323906202,1.21163704,2063.4,2063.0,0.0011]
[1773323906370,1.69388443,2063.4,2063.0,0.0011]
[1773323907392,1.69388443,2063.4,2062.7,0.0011]
[1773323907393,0.48224739,2063.3,2062.7,0.0011]
[1773323907593,0.48224739,2063.3,2062.8,0.0011]
[1773323907908,1.21163704,2063.4,2062.8,0.0011]
[1773323908076,1.21155897,2063.5,2062.8,0.0011]
[1773323908273,4.82762017,2063.6,2062.8,0.0011]
[1773323908606,0.48224739,2063.5,2062.8,0.0011]
[1773323910599,0.48224739,2063.3,2062.8,0.0011]
[1773323912211,1.2115747,2063.5,2062.8,0.0011]
[1773323913129,4.82760782,2063.6,2062.8,2.60907385]
[1773323913620,4.82760782,2063.6,2062.8,0.0011]
[1773323913923,0.48224739,2063.5,2062.8,0.0011]
[1773323915088,1.21159251,2063.4,2062.8,0.0011]
[1773323916094,0.48224739,2063.5,2062.8,0.0011]
[1773323916408,1.69378523,2063.5,2062.8,0.0011]
[1773323917419,0.48224739,2063.4,2062.8,0.0011]
[1773323918310,0.48224739,2063.4,2062.7,0.0011]
[1773323918616,0.48224739,2063.4,2062.8,0.0011]
[1773323919598,1.21165123,2063.3,2062.8,0.0011]
[1773323920003,1.21156289,2063.5,2062.8,0.0011]
[1773323920314,1.69381028,2063.5,2062.8,0.0011]
[1773323920505,0.48224739,2063.4,2062.8,0.0011]
[1773323921520,1.21165123,2063.3,2063.0,0.0011]